fUSD/lending_fUSD_20240502
["ID","MTS","AMOUNT","RATE_DAILY","PERIOD"]
[325269593,1714675839260,-646.62676281,0.00026108,2]
[325269595,1714675839269,-1219.07630198,0.00026142,2]
[325269597,1714675839278,-646.62676281,0.00026261,2]
[325269599,1714675839287,-150.60087653,0.00026283,2]
[325269601,1714675839296,-153.33265497,0.00026346,2]
[325269603,1714675839305,-1219.07630198,0.00026377,2]
[325269605,1714675839314,-152.41856811,0.00026386,2]
[325269607,1714675839323,-150.60087653,0.00026386,2]
[325269609,1714675839332,-154.4522994,0.00026387,2]
[325269611,1714675839342,-150.60087653,0.00026479,2]
[325269613,1714675839351,-154.4522994,0.00026496,2]
[325269615,1714675839360,-1219.07630198,0.00026525,2]
[325269617,1714675839372,-154.0559921,0.00026535,2]
[325269619,1714675839381,-1219.07630198,0.00026536,2]
[325269621,1714675839391,-157.90378739,0.0002654,2]
[325269623,1714675839400,-477.75454783,0.00026579,2]
[325269625,1714675839409,-153.53327137,0.00026612,2]
[325269627,1714675839419,-157.90378739,0.00026646,2]
[325269629,1714675839428,-1750.0,0.000267,2]
[325269631,1714675839440,-500.0,0.000267,9]
[325269633,1714675839449,-154.606807,0.00026746,2]
[325269635,1714675839458,-192.66,0.00026774,120]
[325269637,1714675839467,-153.33265497,0.00026789,2]
[325269639,1714675839476,-700.0,0.000268,9]
[325269641,1714675839485,-1000.0,0.00026822,2]
[325269643,1714675839495,-1219.07630198,0.00026853,2]
[325269645,1714675839504,-153.53327137,0.00026863,2]
[325269647,1714675839513,-152.41856811,0.0002689,2]
[325269649,1714675839523,-1000.0,0.000269,9]
[325269651,1714675839532,-150.60087653,0.00027005,2]
[325269653,1714675839541,-1054.00333085,0.00027014,2]
[325269655,1714675839552,-154.4522994,0.00027026,2]
[325269657,1714675839561,-1219.07630198,0.0002705,2]
[325269659,1714675839571,-153.53327137,0.00027057,2]
[325269661,1714675839580,-154.4522994,0.00027059,2]
[325269663,1714675839589,-151.44278705,0.00027073,2]
[325269665,1714675839598,-151.0,0.00027081,7]
[325269667,1714675839608,-646.62676281,0.00027117,2]
[325269669,1714675839617,-151.44278705,0.00027123,2]
[325269671,1714675839626,-210.00658454,0.00027178,2]
[325269673,1714675839636,-154.606807,0.00027196,2]
[325269675,1714675839645,-3527.7290251,0.00027197,2]
[325269677,1714675839655,-15899.18034502,0.00027207,30]
[325269679,1714675839667,-25646.19571769,0.00027207,30]
[325269681,1714675839677,-155.0,0.00027207,30]
[325269683,1714675839687,-294.429514,0.0002721,7]
[325269685,1714675839696,-230.20164,0.0002721,7]
[325269687,1714675839705,-230.20164,0.0002721,7]
[325269689,1714675839715,-1219.07630198,0.00027261,2]
[325269691,1714675839730,-163.60886974,0.00027283,2]
[325269693,1714675839740,-626.49203817,0.00027296,2]
[325269695,1714675839748,-7944.83427842,0.00027296,13]
[325269698,1714675839763,-6665.89650835,0.00027296,13]
[325269700,1714675839774,-268.59930771,0.00027296,13]
[325269702,1714675839784,-1081.67042576,0.00027296,13]
[325269704,1714675839796,-1056.7830963,0.00027296,13]
[325269706,1714675839809,-975.9428,0.00027296,13]
[325269709,1714675839821,-13205.41857385,0.00027296,13]
[325269711,1714675839833,-360588.89888438,0.00027296,13]
[325269713,1714675839843,-503.15430007,0.00027296,13]
[325269715,1714675839855,-713.45,0.00027296,13]
[325269717,1714675839866,-2023.95885393,0.00027296,13]
[325269735,1714675840023,-2481.26025677,0.00016804,2]
[325269737,1714675840032,-2928.13984323,0.00027296,13]
[325269739,1714675840044,-17846.43472919,0.00027296,13]
[325269741,1714675840057,-5336.33133191,0.00027296,13]
[325269743,1714675840068,-17023.94622346,0.00027296,13]
[325269745,1714675840079,-4334.02072546,0.00027296,13]
[325269748,1714675840090,-10598.23615609,0.00027296,13]
[325269750,1714675840101,-458.66396705,0.00027296,13]
[325269752,1714675840112,-1404.97538,0.00027296,13]
[325269754,1714675840124,-26411.86074067,0.00027296,13]
[325269958,1714675841257,-3889.58991797,0.00013094,2]
[325269959,1714675841266,-155.0,0.00013191,2]
[325269960,1714675841275,-1245.66076353,0.00013191,2]
[325269961,1714675841284,-2481.26025677,0.00016804,2]
[325269962,1714675841293,-2481.26025677,0.00016804,2]
[325269985,1714675841510,-2481.26025677,0.00016804,2]
[325269988,1714675841530,-2481.26025677,0.00016804,2]
[325269990,1714675841540,-2481.26025677,0.00016804,2]
[325269992,1714675841550,-2481.26025677,0.00016804,2]
[325269994,1714675841560,-1418.59419274,0.00016804,2]
[325269996,1714675841572,-1062.66606403,0.00016804,2]
[325269998,1714675841582,-2481.26025677,0.00016804,2]
[325270000,1714675841591,-213.55721908,0.00016804,2]
[325270002,1714675841602,-2267.70303769,0.00016804,2]
[325270004,1714675841612,-2481.26025677,0.00016804,2]
[325270006,1714675841621,-2481.26025677,0.00016804,2]
[325270008,1714675841631,-2481.26025677,0.00016804,2]
[325270010,1714675841640,-2481.26025677,0.00016804,2]
[325270012,1714675841649,-2481.26025677,0.00016804,2]
[325270014,1714675841659,-2481.26025677,0.00016804,2]
[325270016,1714675841668,-2481.26025677,0.00016804,2]
[325270018,1714675841678,-2481.26025677,0.00016804,2]
[325270020,1714675841688,-2481.26025677,0.00016804,2]
[325270022,1714675841698,-2481.26025677,0.00016804,2]
[325270024,1714675841707,-2481.26025677,0.00016804,2]
[325270026,1714675841717,-2481.26025677,0.00016814,2]
[325270028,1714675841729,-16169.82675154,0.00027296,13]
[325270030,1714675841741,-9829.1716183,0.00027296,13]
[325270033,1714675841754,-18185.55689824,0.00027296,13]
[325270035,1714675841767,-500.0,0.00027296,13]
[325270041,1714675841819,-2481.26025677,0.00016814,2]
[325270043,1714675841828,-2481.26025677,0.00016814,2]
[325270045,1714675841838,-8043.10952266,0.00027296,13]
[325270048,1714675841850,-7247.88125866,0.00027296,13]
[325270050,1714675841862,-8814.86234048,0.00027296,13]
[325270052,1714675841873,-11941.0255086,0.00027296,13]
[325270054,1714675841884,-5085.22599903,0.00027296,13]
[325270056,1714675841895,-7040.3643225,0.00027296,13]
[325270059,1714675841907,-40771.26522213,0.00027296,13]
[325270061,1714675841917,-1395.26912772,0.00027296,13]
[325270063,1714675841929,-830.53999099,0.00027296,13]
[325270065,1714675841941,-630.15,0.00027296,13]
[325270067,1714675841953,-785.92464769,0.00027296,13]
[325270070,1714675841964,-669.42707453,0.00027296,13]
[325270072,1714675841975,-2063.21854292,0.00027296,13]
[325270074,1714675841986,-14263.00662656,0.00027296,13]
[325270076,1714675841996,-8903.70000001,0.00027296,13]
[325270078,1714675842007,-39813.36937123,0.00027296,13]
[325270080,1714675842018,-1559.6,0.00027296,13]
[325270083,1714675842030,-27538.04154287,0.00027296,13]
[325270085,1714675842042,-258.52013517,0.00027296,13]
[325270087,1714675842054,-7214.50036956,0.00027296,13]
[325270089,1714675842066,-5115.537408,0.00027296,13]
[325270091,1714675842077,-9500.929818,0.00027296,13]
[325270094,1714675842088,-13171.95393667,0.00027296,13]
[325270096,1714675842098,-578.941023,0.00027296,13]
[325270098,1714675842109,-655.82000289,0.00027296,13]
[325270100,1714675842120,-790.78038868,0.00027296,13]
[325270102,1714675842132,-1729.55783652,0.00027296,13]
[325270104,1714675842142,-6588.8235585,0.00027296,13]
[325270111,1714675842194,-2481.26025677,0.00016814,2]
[325270113,1714675842204,-454.78941276,0.00027296,13]
[325270115,1714675842216,-444.11719502,0.00027296,13]
[325270117,1714675842227,-1654.53650654,0.00027296,13]
[325270120,1714675842239,-24502.57617696,0.00027296,13]
[325270122,1714675842250,-5243.23166968,0.00027296,13]
[325270124,1714675842261,-5638.59697852,0.00027296,13]
[325270126,1714675842273,-4510.56290514,0.00027296,13]
[325270128,1714675842284,-867.8702897,0.00027296,13]
[325270131,1714675842295,-9697.534,0.00027296,13]
[325270133,1714675842307,-1122.82420333,0.00027296,13]
[325270135,1714675842317,-848.26710872,0.00027296,13]
[325270137,1714675842328,-231157.70265026,0.00027296,13]
[325270139,1714675842340,-90626.48899945,0.00027296,13]
[325270141,1714675842352,-775.44461026,0.00027296,13]
[325270144,1714675842364,-579.51261407,0.00027296,13]
[325270146,1714675842375,-1151.7587563,0.00027296,13]
[325270148,1714675842387,-3314.4156,0.00027296,13]
[325270150,1714675842400,-6185.98287592,0.00027296,13]
[325270163,1714675842508,-2481.26025677,0.00016814,2]
[325270165,1714675842519,-728.68469277,0.00027296,13]
[325270191,1714675842755,-1022.04087,0.00016814,2]
[325270193,1714675842766,-1459.21938677,0.00016814,2]
[325270195,1714675842778,-2481.26025677,0.00016814,2]
[325270197,1714675842787,-2230.79767685,0.00027296,13]
[325270199,1714675842799,-366.976,0.00027296,13]
[325270201,1714675842810,-1198.68,0.00027296,13]
[325270204,1714675842821,-1000.07439358,0.00027296,13]
[325270220,1714675842965,-556456.74270817,0.00027296,13]
[325270222,1714675842979,-46058.62707386,0.00027296,13]
[325270225,1714675842992,-40931.49378721,0.00027296,13]
[325270227,1714675843003,-371.73,0.00027296,13]
[325270229,1714675843015,-857.69234347,0.00027296,13]
[325270231,1714675843029,-2097.19357707,0.00027296,13]
[325270234,1714675843042,-185293.51074515,0.00027296,13]
[325270236,1714675843054,-813.78799327,0.00027296,13]
[325270238,1714675843065,-849.99221988,0.00027296,13]
[325270240,1714675843076,-1820.58962265,0.00027296,13]
[325270242,1714675843088,-1755.74824094,0.00027296,13]
[325270245,1714675843099,-347652.70973047,0.00027296,13]
[325270246,1714675843108,-1092.38449032,0.00027297,2]
[325270247,1714675843118,-224.76491087,0.00027297,2]
[325270248,1714675843128,-168.33134763,0.00027297,2]
[325270249,1714675843137,-230.20164,0.00027297,7]
[325270250,1714675843147,-230.20163,0.00027297,7]
[325270251,1714675843157,-166.27153992,0.00027298,2]
[325270252,1714675843166,-338.33637961,0.00027301,2]
[325270253,1714675843176,-157.90378739,0.00027345,2]
[325270254,1714675843188,-153.90874373,0.00027358,2]
[325270257,1714675843198,-11542.3,0.00027397,2]
[325270258,1714675843208,-212.02,0.00027397,10]
[325270260,1714675843217,-150.60087653,0.00027493,2]
[325270262,1714675843226,-477.75454783,0.00027502,2]
[325270265,1714675843236,-163.60886975,0.00027512,2]
[325270268,1714675843245,-154.0559921,0.00027559,2]
[325270270,1714675843256,-159.52540122,0.00027616,2]
[325270271,1714675843266,-646.62676281,0.00027706,2]
[325270273,1714675843276,-225.06,0.00027714,2]
[325270276,1714675843286,-153.33265497,0.00027762,2]
[325270278,1714675843296,-154.4522994,0.00027817,2]
[325270280,1714675843305,-153.33265497,0.00027843,2]
[325270282,1714675843315,-338.33637961,0.00027892,2]
[325270284,1714675843324,-210.00658454,0.00027963,2]
[325270286,1714675843334,-700.0,0.00028,3]
[325270288,1714675843345,-1200.0,0.00028,29]
[325270290,1714675843354,-154.0559921,0.00028021,2]
[325270292,1714675843363,-151.44278705,0.00028023,2]
[325270294,1714675843373,-151.44278705,0.00028041,2]
[325270297,1714675843383,-154.4522994,0.00028083,2]
[325270298,1714675843392,-1218.0,0.00028141,2]
[325270301,1714675843401,-1257.0,0.00028141,2]
[325270303,1714675843411,-3131.0,0.00028141,2]
[325270305,1714675843420,-1469.198,0.00028141,2]
[325270307,1714675843430,-1244.68,0.00028141,2]
[325270309,1714675843440,-153.33265497,0.00028178,2]
[325270310,1714675843450,-153.53327137,0.00028198,2]
[325270312,1714675843460,-370.72,0.00028218,2]
[325270314,1714675843470,-150.60087653,0.00028317,2]
[325270317,1714675843479,-210.00658454,0.00028326,2]
[325270318,1714675843489,-210.00658454,0.0002833,2]
[325270320,1714675843498,-154.4522994,0.00028372,2]
[325270323,1714675843508,-153.90874373,0.00028402,2]
[325270325,1714675843518,-150.60087653,0.00028503,2]
[325270327,1714675843527,-157.90378739,0.00028533,2]
[325270328,1714675843536,-164.53408058,0.00028539,2]
[325270330,1714675843546,-151.44278705,0.00028577,2]
[325270332,1714675843555,-210.00658454,0.00028592,2]
[325270335,1714675843565,-152.41856811,0.0002866,2]
[325270337,1714675843574,-338.33637961,0.00028691,2]
[325270339,1714675843583,-477.75454783,0.00028729,2]
[325270341,1714675843592,-338.33637961,0.00028762,2]
[325270343,1714675843601,-151.44278705,0.00028781,2]
[325270345,1714675843610,-152.41856811,0.00028815,2]
[325270346,1714675843619,-157.90378739,0.00028845,2]
[325270348,1714675843628,-477.75454783,0.00028847,2]
[325270350,1714675843637,-10000.0,0.00028874,2]
[325270352,1714675843646,-477.75454783,0.00028914,2]
[325270354,1714675843655,-646.62676281,0.00028918,2]
[325270356,1714675843664,-151.44278705,0.00028986,2]
[325270358,1714675843673,-164.74921332,0.00029003,2]
[325270360,1714675843683,-3527.72902509,0.00029049,2]
[325270363,1714675843695,-151.44278705,0.00029089,2]
[325270365,1714675843704,-164.74921332,0.00029191,2]
[325270367,1714675843714,-646.62676281,0.00029196,2]
[325270369,1714675843726,-1750.0,0.000292,2]
[325270371,1714675843736,-646.62676281,0.00029206,2]
[325270373,1714675843747,-155.15887903,0.00029258,2]
[325270375,1714675843756,-157.90378739,0.00029296,2]
[325270377,1714675843766,-154.4522994,0.00029364,2]
[325270379,1714675843775,-150.60087653,0.00029369,2]
[325270381,1714675843784,-338.33637961,0.00029376,2]
[325270383,1714675843793,-646.62676281,0.00029494,2]
[325270385,1714675843802,-210.00658454,0.00029499,2]
[325270386,1714675843812,-157.90378739,0.00029546,2]
[325270388,1714675843823,-157.90378739,0.00029584,2]
[325270390,1714675843832,-183.45,0.00029621,120]
[325270393,1714675843841,-583.83,0.00029621,2]
[325270395,1714675843850,-150.60087653,0.00029634,2]
[325270396,1714675843860,-646.62676281,0.00029668,2]
[325270398,1714675843870,-150.60087653,0.00029678,2]
[325270400,1714675843879,-151.44278705,0.00029692,2]
[325270402,1714675843888,-187.365932,0.00029736,7]
[325270404,1714675843897,-157.90378739,0.00029773,2]
[325270407,1714675843916,-150.60087653,0.00029776,2]
[325270409,1714675843926,-338.33637961,0.00029909,2]
[325270411,1714675843936,-153.53327137,0.00029966,2]
[325270413,1714675843947,-626.49203817,0.00029987,2]
[325270415,1714675843956,-477.75454783,0.00029988,2]
[325270417,1714675843965,-326.75699658,0.00029999,2]
[325270418,1714675843975,-681.8479,0.0003,4]
[325270421,1714675843985,-750.0,0.0003,3]
[325270423,1714675843995,-210.00658454,0.00030073,7]
[325270425,1714675844004,-154.4522994,0.00030076,7]
[325270427,1714675844013,-153.53327137,0.00030083,7]
[325270428,1714675844022,-210.00658454,0.00030089,7]
[325270430,1714675844032,-3156.0,0.000301,4]
[325270432,1714675844043,-964.75,0.00030136,2]
[325270434,1714675844052,-5008.15,0.00030136,2]
[325270436,1714675844061,-6402.26,0.00030136,2]
[325270438,1714675844070,-500.0,0.00030136,2]
[325270440,1714675844079,-4962.54,0.00030136,2]
[325270442,1714675844089,-976.17,0.00030136,2]
[325270444,1714675844098,-500.0,0.00030136,2]
[325270446,1714675844107,-505.67802662,0.00030136,2]
[325270448,1714675844117,-500.0,0.00030136,2]
[325270450,1714675844127,-500.0,0.00030136,2]
[325270452,1714675844136,-811.08,0.00030136,2]
[325270454,1714675844145,-500.0,0.00030136,2]
[325270456,1714675844154,-1741.2,0.00030136,2]
[325270458,1714675844163,-2996.55,0.00030136,2]
[325270460,1714675844173,-574.20780003,0.00030136,2]
[325270462,1714675844183,-500.0,0.00030136,2]
[325270464,1714675844196,-500.0,0.00030136,2]
[325270466,1714675844206,-593.34,0.00030136,2]
[325270468,1714675844215,-500.0,0.00030136,2]
[325270470,1714675844225,-500.0,0.00030136,2]
[325270472,1714675844236,-2819.09,0.00030136,2]
[325270474,1714675844246,-705.91,0.00030136,2]
[325270476,1714675844257,-500.0,0.00030136,2]
[325270478,1714675844267,-500.0,0.00030136,2]
[325270480,1714675844276,-500.0,0.00030136,2]
[325270484,1714675844286,-500.0,0.00030136,2]
[325270488,1714675844296,-26321.81,0.00030136,2]
[325270492,1714675844305,-3663.59,0.00030136,2]
[325270495,1714675844314,-981.95,0.00030136,2]
[325270498,1714675844324,-500.0,0.00030136,2]
[325270501,1714675844333,-500.0,0.00030136,2]
[325270503,1714675844343,-500.0,0.00030136,2]
[325270505,1714675844352,-500.0,0.00030136,2]
[325270507,1714675844362,-456.53710225,0.00030136,2]
[325270509,1714675844371,-500.0,0.00030136,2]
[325270511,1714675844382,-3278.27,0.00030136,2]
[325270513,1714675844391,-500.0,0.00030136,2]
[325270515,1714675844401,-1937.3,0.00030136,2]
[325270517,1714675844410,-501.12485822,0.00030136,2]
[325270519,1714675844419,-500.0,0.00030136,2]
[325270521,1714675844428,-2954.78,0.00030136,2]
[325270523,1714675844438,-500.92839443,0.00030136,2]
[325270525,1714675844450,-13560.52,0.00030136,2]
[325270527,1714675844459,-544.09380445,0.00030136,2]
[325270530,1714675844469,-808.49,0.00030136,2]
[325270531,1714675844478,-1898.13,0.00030136,2]
[325270533,1714675844487,-660.24,0.00030136,2]
[325270535,1714675844496,-500.0,0.00030136,2]
[325270537,1714675844505,-3154.06,0.00030136,2]
[325270540,1714675844515,-500.0,0.00030136,2]
[325270542,1714675844524,-500.0,0.00030136,2]
[325270544,1714675844533,-500.0,0.00030136,2]
[325270549,1714675844542,-500.0,0.00030136,2]
[325270554,1714675844551,-500.0,0.00030136,2]
[325270557,1714675844560,-1266.49,0.00030136,2]
[325270561,1714675844569,-501.32729579,0.00030136,2]
[325270566,1714675844578,-500.0,0.00030136,2]
[325270568,1714675844588,-864.7,0.00030136,2]
[325270571,1714675844597,-500.0,0.00030136,2]
[325270574,1714675844607,-1748.67,0.00030136,2]
[325270578,1714675844617,-500.0,0.00030136,2]
[325270583,1714675844626,-500.0,0.00030136,2]
[325270587,1714675844635,-1634.51,0.00030136,2]
[325270591,1714675844645,-513.04498357,0.00030136,2]
[325270595,1714675844654,-502.82537685,0.00030136,2]
[325270598,1714675844663,-500.0,0.00030136,2]
[325270601,1714675844672,-772.78,0.00030136,2]
[325270602,1714675844682,-1845.92,0.00030136,2]
[325270604,1714675844694,-500.0,0.00030136,2]
[325270606,1714675844703,-2482.91,0.00030136,2]
[325270609,1714675844712,-500.0,0.00030136,2]
[325270610,1714675844724,-1971.75,0.00030136,2]
[325270612,1714675844732,-580.7,0.00030136,2]
[325270614,1714675844741,-500.0,0.00030136,2]
[325270616,1714675844753,-500.67530055,0.00030136,2]
[325270619,1714675844763,-1170.81,0.00030136,2]
[325270620,1714675844773,-1285.43,0.00030136,2]
[325270622,1714675844782,-504.23542275,0.00030136,2]
[325270624,1714675844791,-207.11858091,0.00030136,2]
[325270627,1714675844800,-813.98,0.00030136,2]
[325270630,1714675844810,-500.0,0.00030136,2]
[325270633,1714675844819,-500.0,0.00030136,2]
[325270636,1714675844828,-887.81,0.00030136,2]
[325270639,1714675844838,-1680.15,0.00030136,2]
[325270641,1714675844847,-1723.32,0.00030136,2]
[325270644,1714675844856,-500.40918959,0.00030136,2]
[325270646,1714675844865,-500.35519852,0.00030136,2]
[325270647,1714675844874,-500.0,0.00030136,2]
[325270648,1714675844884,-500.0,0.00030136,2]
[325270649,1714675844895,-500.0,0.00030136,2]
[325270650,1714675844904,-5094.07,0.00030136,2]
[325270651,1714675844914,-4729.81,0.00030136,2]
[325270652,1714675844923,-500.0,0.00030136,2]
[325270654,1714675844933,-1195.82,0.00030136,2]
[325270655,1714675844946,-500.0,0.00030136,2]
[325270657,1714675844955,-500.0,0.00030136,2]
[325270659,1714675844964,-500.0,0.00030136,2]
[325270661,1714675844973,-832.23,0.00030136,2]
[325270663,1714675844982,-500.0,0.00030136,2]
[325270665,1714675844991,-500.0,0.00030136,2]
[325270667,1714675845000,-1364.3,0.00030136,2]
[325270669,1714675845011,-500.0,0.00030136,2]
[325270671,1714675845021,-2499.67,0.00030136,2]
[325270673,1714675845030,-500.0,0.00030136,2]
[325270675,1714675845040,-500.0,0.00030136,2]
[325270677,1714675845050,-500.0,0.00030136,2]
[325270679,1714675845060,-500.0,0.00030136,2]
[325270681,1714675845071,-650.26,0.00030136,2]
[325270683,1714675845080,-500.0,0.00030136,2]
[325270685,1714675845089,-2843.67,0.00030136,2]
[325270687,1714675845099,-500.0,0.00030136,2]
[325270689,1714675845107,-500.0,0.00030136,2]
[325270691,1714675845117,-510.98471188,0.00030136,2]
[325270693,1714675845126,-500.0,0.00030136,2]
[325270696,1714675845135,-1361.28,0.00030136,2]
[325270698,1714675845144,-805.45,0.00030136,2]
[325270700,1714675845154,-500.0,0.00030136,2]
[325270701,1714675845163,-500.0,0.00030136,2]
[325270703,1714675845173,-500.0,0.00030136,2]
[325270706,1714675845182,-500.41158981,0.00030136,2]
[325270707,1714675845192,-500.0,0.00030136,2]
[325270709,1714675845201,-500.0,0.00030136,2]
[325270711,1714675845210,-500.0,0.00030136,2]
[325270713,1714675845219,-150.0,0.00030197,2]
[325270715,1714675845229,-477.75454783,0.0003021,7]
[325270717,1714675845238,-180.0,0.00030258,2]
[325270719,1714675845247,-153.90874373,0.00030258,7]
[325270721,1714675845257,-154.4522994,0.00030262,7]
[325270724,1714675845266,-153.53327137,0.00030337,7]
[325270727,1714675845276,-151.44278705,0.00030367,7]
[325270729,1714675845285,-165.49774951,0.00030379,7]
[325270731,1714675845294,-1200.0,0.000304,11]
[325270733,1714675845304,-964.75,0.0003041,2]
[325270735,1714675845313,-5008.15,0.0003041,2]
[325270736,1714675845322,-6402.26,0.0003041,2]
[325270738,1714675845331,-4962.54,0.0003041,2]
[325270740,1714675845339,-976.17,0.0003041,2]
[325270742,1714675845348,-500.0,0.0003041,2]
[325270776,1714675845646,-500.0,0.0003041,2]
[325270778,1714675845656,-811.08,0.0003041,2]
[325270780,1714675845666,-1741.2,0.0003041,2]
[325270782,1714675845674,-2996.55,0.0003041,2]
[325270784,1714675845682,-500.0,0.0003041,2]
[325270786,1714675845693,-500.0,0.0003041,2]
[325270788,1714675845702,-593.34,0.0003041,2]
[325270790,1714675845711,-225.13094307,0.0003041,2]
[325270792,1714675845723,-2819.09,0.0003041,2]
[325270794,1714675845734,-705.91,0.0003041,2]
[325270796,1714675845742,-501.54669979,0.0003041,2]
[325270798,1714675845750,-515.58085392,0.0003041,2]
[325270800,1714675845758,-26321.81,0.0003041,2]
[325270802,1714675845767,-3663.59,0.0003041,2]
[325270804,1714675845776,-981.95,0.0003041,2]
[325270806,1714675845783,-500.0,0.0003041,2]
[325270808,1714675845790,-252.42781442,0.0003041,2]
[325270810,1714675845801,-566.55359297,0.0003041,2]
[325270813,1714675845811,-500.0,0.0003041,2]
[325270815,1714675845820,-500.0,0.0003041,2]
[325270817,1714675845828,-3278.27,0.0003041,2]
[325270819,1714675845838,-500.0,0.0003041,2]
[325270821,1714675845847,-1937.3,0.0003041,2]
[325270823,1714675845853,-500.0,0.0003041,2]
[325270825,1714675845862,-2954.78,0.0003041,2]
[325270826,1714675845870,-13560.52,0.0003041,2]
[325270829,1714675845879,-55.14996846,0.0003041,2]
[325270836,1714675845927,-753.34003154,0.0003041,2]
[325270838,1714675845936,-1898.13,0.0003041,2]
[325270840,1714675845945,-660.24,0.0003041,2]
[325270842,1714675845954,-3154.06,0.0003041,2]
[325270844,1714675845961,-500.0,0.0003041,2]
[325270846,1714675845969,-500.0,0.0003041,2]
[325270847,1714675845977,-505.1073472,0.0003041,2]
[325270850,1714675845987,-1266.49,0.0003041,2]
[325270852,1714675845996,-500.0,0.0003041,2]
[325270854,1714675846009,-864.7,0.0003041,2]
[325270856,1714675846019,-500.0,0.0003041,2]
[325270858,1714675846028,-1748.67,0.0003041,2]
[325270860,1714675846038,-500.0,0.0003041,2]
[325270862,1714675846048,-500.0,0.0003041,2]
[325270864,1714675846058,-1634.51,0.0003041,2]
[325270866,1714675846068,-500.0,0.0003041,2]
[325270868,1714675846078,-1845.92,0.0003041,2]
[325270870,1714675846088,-772.78,0.0003041,2]
[325270872,1714675846098,-500.0,0.0003041,2]
[325270874,1714675846108,-2482.91,0.0003041,2]
[325270876,1714675846117,-500.0,0.0003041,2]
[325270878,1714675846127,-1971.75,0.0003041,2]
[325270880,1714675846136,-580.7,0.0003041,2]
[325270882,1714675846146,-500.0,0.0003041,2]
[325270884,1714675846156,-1170.81,0.0003041,2]
[325270886,1714675846166,-1285.43,0.0003041,2]
[325270888,1714675846176,-813.98,0.0003041,2]
[325270890,1714675846185,-500.0,0.0003041,2]
[325270892,1714675846196,-887.81,0.0003041,2]
[325270894,1714675846207,-1680.15,0.0003041,2]
[325270896,1714675846216,-500.0,0.0003041,2]
[325270898,1714675846226,-1723.32,0.0003041,2]
[325270900,1714675846236,-500.0,0.0003041,2]
[325270902,1714675846246,-500.0,0.0003041,2]
[325270904,1714675846257,-5094.07,0.0003041,2]
[325270906,1714675846266,-4729.81,0.0003041,2]
[325270908,1714675846276,-500.0,0.0003041,2]
[325270912,1714675846287,-1195.82,0.0003041,2]
[325270915,1714675846297,-832.23,0.0003041,2]
[325270917,1714675846309,-500.0,0.0003041,2]
[325270920,1714675846318,-500.0,0.0003041,2]
[325270923,1714675846327,-1364.3,0.0003041,2]
[325270926,1714675846337,-510.26418451,0.0003041,2]
[325270929,1714675846346,-2499.67,0.0003041,2]
[325270932,1714675846355,-500.0,0.0003041,2]
[325270935,1714675846365,-500.0,0.0003041,2]
[325270938,1714675846374,-500.0,0.0003041,2]
[325270940,1714675846383,-650.26,0.0003041,2]
[325270944,1714675846393,-500.0,0.0003041,2]
[325270946,1714675846403,-2843.67,0.0003041,2]
[325270949,1714675846412,-505.90006443,0.0003041,2]
[325270951,1714675846421,-500.0,0.0003041,2]
[325270952,1714675846430,-500.0,0.0003041,2]
[325270953,1714675846441,-1361.28,0.0003041,2]
[325270954,1714675846450,-805.45,0.0003041,2]
[325270957,1714675846459,-500.0,0.0003041,2]
[325270960,1714675846468,-150.60087653,0.00030429,7]
[325270961,1714675846477,-155.15887903,0.00030458,7]
[325270962,1714675846486,-155.51549721,0.0003049,7]
[325270963,1714675846495,-200.0,0.000305,11]
[325270965,1714675846504,-573.24434041,0.000306,2]
[325270967,1714675846514,-200.0,0.000306,11]
[325270969,1714675846524,-477.75454783,0.00030626,7]
[325270971,1714675846533,-573.24434036,0.00030627,2]
[325270973,1714675846542,-573.24434036,0.00030655,2]
[325270975,1714675846552,-166.63741744,0.00030663,7]
[325270977,1714675846561,-573.24434036,0.00030682,2]